[Event "Israeli Team-ch 2023"]
[Site "Petah Tikva"]
[Date "2023.02.03"]
[Round "5.35"]
[White "Deutsch, Eyal"]
[Black "Guz, Ari"]
[Result "1/2-1/2"]
[ECO "D02"]
[WhiteElo "2297"]
[BlackElo "2306"]
[Annotator "TA"]
[PlyCount "44"]
[EventDate "2023.01.13"]
[EventCountry "ISR"]
[SourceTitle "playchess.com"]
[Source "ChessBase"]
[SourceQuality "1"]
[TimeControl "40/5400+30:1800+30"]

{[%evp 23,29,-5,-6,-12,-10,-18,-15,-35]} 1. d4 {[%emt 0:07:04]} d5 {[%emt 0:00:51]} 2. Nf3 {[%emt 0:00:06]} Nf6 {[%emt 0:00:22]} 3. Bf4 {[%emt 0:00:09]} e6 {[%emt 0:01:32]} 4. e3 {[%emt 0:00:15]} Bd6 {[%emt 0:00:38]} 5. Bg3 {[%emt 0:00:14]} O-O {[%emt 0:00:56]} 6. Nbd2 {[%emt 0:00:07]} c5 {[%emt 0:00:21]} 7. c3 {[%emt 0:00:29]} Qc7 {[%emt 0:00:59]} 8. Bd3 {[%emt 0:00:31]} Nbd7 {[%emt 0:00:41]} 9. Bxd6 {[%emt 0:05:38]} Qxd6 {[%emt 0:00:08]} 10. O-O {[%emt 0:00:03]} e5 {[%emt 0:01:17]} 11. dxe5 {[%emt 0:00:19]} Nxe5 {[%emt 0:00:09]} 12. Nxe5 {[%emt 0:00:03]} Qxe5 {[%emt 0:00:02] The position is equal.} 13. Qf3 {[%emt 0:01:07] D02: 1 d4 d5 2 Nf3 sidelines, including 2...Nf6 3 g3 and 2...Nf6 3 Bf4.} Bg4 {[%emt 0:03:30]} 14. Qg3 {[%emt 0:00:09]} Qxg3 {[%emt 0:03:13]} 15. hxg3 {[%emt 0:00:23] [#] Not much happened in this game.   Weighted Error Value: White=0.07 (flawless) /Black=0.01 (flawless)} {Predecessor:} Rad8 $146 16. f3 Be6 17. g4 d4 18. cxd4 cxd4 19. e4 Rc8 20. Rfc1 h6 21. a3 Rfd8 22. Kf2 Nd7 {0-1 Bujisho,B (2290)-Haque,N (2263) Titled Tuesday intern op 12th May blitz 2020 (1)} 1/2-1/2

[Event "Israeli Team-ch 2023"]
[Site "Petah Tikva"]
[Date "2023.02.03"]
[Round "5.36"]
[White "Veinberg, Nimrod"]
[Black "Solomon, Asif"]
[Result "1-0"]
[ECO "D45"]
[WhiteElo "2400"]
[BlackElo "2272"]
[Annotator "TA"]
[PlyCount "89"]
[EventDate "2023.01.13"]
[EventCountry "ISR"]
[SourceTitle "playchess.com"]
[Source "ChessBase"]
[SourceQuality "1"]
[TimeControl "40/5400+30:1800+30"]

{[%evp 11,89,-8,22,0,15,9,4,13,10,0,6,6,8,4,46,50,48,41,77,64,94,91,83,10,76,73,129,134,118,119,118,122,169,128,115,97,84,101,91,100,100,106,150,144,205,197,191,191,192,191,234,228,236,250,252,243,255,214,324,313,366,352,385,381,385,384,435,444,531,533,528,525,607,605,646,629,615,591,761,746]} 1. d4 {[%emt 0:08:14]} Nf6 {[%emt 0:00:04]} 2. c4 {[%emt 0:00:07]} e6 {[%emt 0:00:13]} 3. Nc3 {[%emt 0:00:16]} Bb4 {[%emt 0:00:04]} 4. Bd2 {[%emt 0:00:09]} O-O {[%emt 0:02:56]} 5. Nf3 {[%emt 0:00:33]} d5 {[%emt 0:02:05]} 6. e3 {[%emt 0:00:09]} c6 {[%emt 0:05:58]} 7. Be2 {[%emt 0:00:42] D45: Semi-Slav: 5 e3.} Nbd7 {[%emt 0:00:35]} 8. O-O {[%emt 0:00:13][%cal Oc3d5]} Bd6 {[%emt 0:05:53]} 9. Qc2 {[%emt 0:04:33] The position is equal.} Qe7 {[%emt 0:12:29] [#]} 10. Rfe1 $146 {[%emt 0:06:10]} ({Predecessor:} 10. e4 dxe4 11. Nxe4 Nxe4 12. Qxe4 f5 13. Qc2 e5 14. Bg5 Qe8 15. dxe5 Nxe5 16. c5 Bc7 17. Rfe1 Nxf3+ 18. Bxf3 Qg6 {½-½ Kasoshvili,T (2174)-Melashvili,N (2125) Wch Seniors 50 (Women) 25th 2015 (3)}) 10... dxc4 {[%emt 0:08:08]} 11. Bxc4 {[%emt 0:00:31]} e5 {[%emt 0:00:05]} 12. h3 {[%emt 0:00:52]} (12. Bd3 {simplifies} Re8 13. Ne4 Nxe4 14. Bxe4 Nf6 15. dxe5 Nxe4 16. Qxe4 Bxe5 17. Nxe5 Qxe5 18. Qxe5 Rxe5 19. e4) 12... h6 {[%emt 0:16:16]} (12... e4 $5 {[%cal Re4f3]} 13. Ng5 Nb6 $11) 13. Nh4 {[%emt 0:12:02] Black must now prevent Nf5.} Nb6 {[%emt 0:02:40]} 14. Ng6 {[%emt 0:11:32] Prevents Nxc4.} Qc7 {[%emt 0:00:04]} 15. Bb3 {[%emt 0:01:50] dxe5 would be deadly. White is much more active. The black rooks are badly placed.} Re8 {[%emt 0:02:29]} 16. dxe5 {[%emt 0:16:57]} Bxe5 {[%emt 0:00:08]} 17. e4 {[%emt 0:01:11]} (17. Nxe5 $16 Qxe5 18. e4 (18. Qg6 Be6 $11)) 17... Nh5 {[%emt 0:06:25]} (17... Bh2+ $11 {keeps the balance.} 18. Kh1 Be6) 18. Qd1 {[%emt 0:02:39] The board is on fire.} Nf4 {[%emt 0:05:12]} ({Black should try} 18... Bh2+ 19. Kh1 Nf4) 19. Nxe5 $16 {[%emt 0:00:14]} Qxe5 {[%emt 0:00:07]} 20. Qf3 {[%emt 0:00:04]} Ne6 {[%emt 0:00:38]} 21. Rad1 {[%emt 0:03:38]} Re7 {[%emt 0:05:23]} (21... Bd7 $16) 22. Ne2 {[%emt 0:05:27] Threatens to win with Bc3.} Ng5 {[%emt 0:04:33]} 23. Bxg5 {[%emt 0:04:17]} (23. Qc3 {simplifies} Qxc3 24. Bxc3 Be6 25. Bc2) 23... Qxg5 {[%emt 0:00:17]} 24. Rd8+ {[%emt 0:04:04]} Kh7 {[%emt 0:00:01][%cal Oc8g4]} 25. Red1 $36 {[%emt 0:02:14][%mdl 2048] White is on the roll.} (25. Bxf7 $2 Rxf7 26. Qxf7 Qxd8 $19) 25... Be6 {[%emt 0:07:10] [#]} 26. Bxe6 $1 {[%emt 0:00:02]} Rxd8 {[%emt 0:01:49]} 27. Bf5+ {[%emt 0:00:51]} ({Don't do} 27. Rxd8 $6 Rxe6 28. Rd4 (28. Qxf7 $2 {is the wrong capture.} Qxd8 29. Qxe6 Qd1+ 30. Kh2 Qxe2 $19) 28... Re7 $11) 27... Qxf5 {[%emt 0:00:42]} (27... g6 $16 {is a better defense.} 28. Rxd8 gxf5) 28. Qxf5+ $18 {[%emt 0:00:07]} g6 {[%emt 0:00:03] [#]} 29. Qxf7+ $3 {[%emt 0:00:20][%mdl 512]} Rxf7 {[%emt 0:00:14]} 30. Rxd8 {[%emt 0:00:02][%mdl 4096] Endgame KRN-KRN} g5 {[%emt 0:03:10]} 31. f3 {[%emt 0:02:22]} Kg6 {[%emt 0:01:36]} 32. Kf2 {[%emt 0:00:55]} h5 {[%emt 0:03:24]} 33. b3 {[%emt 0:00:25]} h4 {[%emt 0:00:50]} 34. Ke3 {[%emt 0:01:25]} Kf6 {[%emt 0:01:15]} (34... Re7 $142 35. Rd6+ Kf7) 35. Nd4 {[%emt 0:00:43]} Ke7 {[%emt 0:01:53]} 36. Rh8 {[%emt 0:02:33]} c5 {[%emt 0:01:22]} 37. Nb5 {[%emt 0:02:00]} a6 {[%emt 0:00:25]} 38. Rh6 {[%emt 0:00:15]} Nc8 {[%emt 0:01:55]} 39. Nc3 {[%emt 0:00:08] White is clearly winning.} Rg7 {[%emt 0:00:32]} 40. Na4 {[%emt 0:00:28]} c4 {[%emt 0:00:47]} 41. bxc4 {[%emt 0:30:08]} Nd6 {[%emt 0:01:37]} 42. Nb6 {[%emt 0:00:00]} Nf7 {[%emt 0:01:23]} 43. Nd5+ {[%emt 0:00:00]} Kd7 {[%emt 0:00:05]} 44. Rb6 {[%emt 0:00:00]} Nd8 {[%emt 0:01:02]} 45. e5 {[%emt 0:00:00] A superb game by Veinberg.   Weighted Error Value: White=0.07 (flawless) /Black=0.29 (precise)} 1-0

[Event "Israeli Team-ch 2023"]
[Site "Petah Tikva"]
[Date "2023.02.10"]
[Round "7.1"]
[White "Tzidkiya, Yeshaayahu"]
[Black "Greenfeld, Alon"]
[Result "0-1"]
[ECO "B50"]
[WhiteElo "2415"]
[BlackElo "2460"]
[Annotator "TA"]
[PlyCount "96"]
[EventDate "2023.01.13"]
[EventCountry "ISR"]
[SourceTitle "playchess.com"]
[Source "ChessBase"]
[SourceQuality "1"]
[TimeControl "40/5400+30:1800+30"]

{[%evp 12,96,44,13,29,10,14,14,13,10,14,14,19,20,20,8,14,3,24,0,18,18,2,-57,-58,-131,-140,-184,-181,-178,-176,-164,-108,-109,-120,-76,-62,-70,-58,-70,-63,-105,-51,-64,-44,-58,-62,-65,-68,-52,-66,-195,-28,-372,-250,-229,-115,-103,-90,-134,-134,-145,-143,-539,-545,-507,-507,-497,-487,-536,-504,-858,-616,-994,-899,-29956,-29958,-29962,-29964,-29966,-29968,-29970,-29961,-29967,-29968,-29970,-29969]} 1. e4 {[%emt 0:00:03]} c5 {[%emt 0:07:30]} 2. Nf3 {[%emt 0:00:07]} d6 {[%emt 0:01:10]} 3. Bb5+ {[%emt 0:01:13]} Bd7 {[%emt 0:02:38]} 4. Bxd7+ {[%emt 0:00:06]} Nxd7 {[%emt 0:00:23]} 5. O-O {[%emt 0:00:09]} Ngf6 {[%emt 0:00:26]} 6. Qe2 {[%emt 0:00:18]} e6 {[%emt 0:00:53]} 7. b3 {[%emt 0:00:45]} g6 {[%emt 0:05:05] B50: Sicilian: 2...d6, Miscellaneous.} 8. Bb2 {[%emt 0:02:38]} Bg7 {[%emt 0:00:19]} 9. d4 {[%emt 0:09:29]} cxd4 {[%emt 0:04:01] The position is equal.} 10. Nxd4 {[%emt 0:00:05]} O-O {[%emt 0:01:45]} 11. c4 {[%emt 0:04:06]} a6 {[%emt 0:11:47]} 12. Nc3 {[%emt 0:03:31]} Rc8 {[%emt 0:02:23]} 13. Rad1 {[%emt 0:05:01]} Qa5 {[%emt 0:08:24]} 14. f4 {[%emt 0:18:03] [#]} Rfe8 $146 {[%emt 0:10:50]} ({Predecessor:} 14... Qh5 15. Nf3 Qc5+ 16. Kh1 Nh5 17. Qd2 Rfd8 18. Na4 Qc6 19. Bxg7 Nxg7 20. Nd4 Qc7 {½-½ Kwon,S (2195)-Poh,Y (2081) Online Olym Div3 A rapid 2021 (9.4)}) 15. Nf3 {[%emt 0:05:59]} (15. Nc2 {simplifies} Qc7 16. Kh1 Rcd8 17. Ne1) 15... Nh5 {[%emt 0:04:00]} 16. e5 {[%emt 0:05:07]} Nxf4 {[%emt 0:06:34]} 17. Qe4 {[%emt 0:10:27]} (17. Qe3 Qc5 18. Bc1 Qxe3+ 19. Bxe3 Nd5 20. Nxd5 exd5 21. Rxd5 Nxe5 $15) (17. Qd2 $11 Bh6 18. Kh1 (18. Qxd6 Nc5 $17) 18... Nxe5 19. g3 Nxf3 20. Rxf3 {[%mdl 64] Pin}) 17... Nh5 $15 {[%emt 0:00:33][%cal Rd7e5]} (17... Bxe5 $2 18. Nxe5 (18. Qxb7 $2 Nc5 $19) 18... f5 19. Qxf4 $18) 18. Rxd6 {[%emt 0:09:51]} ({Better is} 18. Na4 $1 $15 Nxe5 19. Nxe5 Bxe5 20. Bxe5 Qxe5 21. Qxb7) 18... Nxe5 $17 {[%emt 0:02:56]} 19. Na4 {[%emt 0:18:07][%cal Rb2e5] Prevents Qc5+.} Nxf3+ {[%emt 0:07:09]} ({And not} 19... Nxc4 20. bxc4 Qxa4 21. Bxg7 Nxg7 22. Ne5 $17) 20. Rxf3 {[%emt 0:03:01]} (20. Qxf3 $2 {too greedy.} Bxb2 21. Qxf7+ Kh8 $19) 20... Bxb2 {[%emt 0:04:07]} 21. Nxb2 {[%emt 0:00:35]} Qc5+ {[%emt 0:03:09]} (21... Qxa2 $19 22. Nd1 Qa5) 22. Qd4 {[%emt 0:00:07]} Qxd4+ {[%emt 0:00:19]} 23. Rxd4 {[%emt 0:00:03]} Red8 {[%emt 0:00:20] Inhibits Rd7.} 24. Rxd8+ {[%emt 0:02:04]} Rxd8 $15 {[%emt 0:00:02][%mdl 4096] Endgame KRN-KRN} 25. g4 {[%emt 0:00:05]} Ng7 {[%emt 0:02:46]} 26. Nd3 {[%emt 0:00:53]} h5 {[%emt 0:03:38]} (26... Ne8 $17 27. g5 Rd4) 27. Ne5 {[%emt 0:00:50]} Rd1+ {[%emt 0:01:25]} 28. Kf2 {[%emt 0:00:04]} Rd2+ $1 {[%emt 0:05:51]} 29. Ke3 {[%emt 0:01:24]} Rxh2 {[%emt 0:00:36] Strongly threatening ...hxg4.} 30. Rxf7 {[%emt 0:00:20]} hxg4 {[%emt 0:00:07]} 31. Rf6 {[%emt 0:00:56] [#]} ({Much weaker is} 31. Rxb7 g3 32. Rb8+ Kh7 $17) ({White must play} 31. Nxg4 $15 Rh3+ 32. Rf3 Nf5+ 33. Kf2) 31... Rxa2 $2 {[%emt 0:01:16]} (31... Nf5+ $1 $19 32. Kf4 g3 33. Rxg6+ Kf8) 32. Kd4 $2 {[%emt 0:00:31][%mdl 8192]} (32. Rxg6 $11 Rb2 33. Rxg4) 32... g3 {[%emt 0:02:09]} 33. Rxg6 {[%emt 0:00:04]} g2 {[%emt 0:00:12]} (33... Kh7 $19 {Threatens to win with ...Re2.} 34. Rg4 Nf5+ 35. Kd3 Ra1) 34. Rg4 $17 {[%emt 0:00:31]} Rd2+ {[%emt 0:00:58]} 35. Kc5 {[%emt 0:00:45] [#]} Kf8 $1 {[%emt 0:00:30]} 36. Ng6+ {[%emt 0:00:38]} Kf7 {[%emt 0:00:28] Hoping for ...Nf5.} 37. Nh4 {[%emt 0:00:30][%mdl 8192] [#]} (37. Nh8+ $17 {nothing else works.} Kg8 38. Ng6) 37... b6+ $1 $19 {[%emt 0:01:25]} 38. Kxb6 {[%emt 0:00:03] [#]} Rd4 $3 {[%emt 0:00:05][%mdl 576] Promotion} 39. Rxg2 {[%emt 0:00:02] Black must now prevent Nf3.} (39. Rxg7+ Kxg7) 39... Rxh4 {[%emt 0:00:05]} 40. Kxa6 {[%emt 0:00:19] KRN-KR} e5 {[%emt 0:00:47]} 41. Rc2 {[%emt 0:09:53]} (41. Ka5 $142 Nf5 42. Rg5) 41... Nf5 {[%emt 0:06:45]} 42. Rc1 {[%emt 0:00:05]} Ke6 {[%emt 0:02:06] And now ...e4 would win.} 43. b4 {[%emt 0:01:53]} Nd6 {[%emt 0:01:01] Black mates.} 44. c5 {[%emt 0:00:13]} Rxb4 {[%emt 0:00:34]} 45. cxd6 {[%emt 0:00:04]} Kxd6 {[%emt 0:00:24]} 46. Ka5 {[%emt 0:01:13]} Rb2 {[%emt 0:03:01]} 47. Ka4 {[%emt 0:01:35]} e4 {[%emt 0:00:33]} 48. Ka3 {[%emt 0:00:03]} Rb8 {[%emt 0:00:13] Weighted Error Value: White=0.66/Black=0.22 (precise)} 0-1

[Event "Israeli Team-ch 2023"]
[Site "Petah Tikva"]
[Date "2023.02.10"]
[Round "7.2"]
[White "Khmelniker, Ilya"]
[Black "Bernadskiy, Vitaliy"]
[Result "1/2-1/2"]
[ECO "D66"]
[WhiteElo "2476"]
[BlackElo "2609"]
[Annotator "TA"]
[PlyCount "112"]
[EventDate "2023.01.13"]
[EventCountry "ISR"]
[SourceTitle "playchess.com"]
[Source "ChessBase"]
[SourceQuality "1"]
[TimeControl "40/5400+30:1800+30"]

{[%evp 23,112,24,37,29,43,0,0,0,0,0,0,0,0,0,0,0,0,0,0,0,0,0,0,0,39,44,47,42,55,46,45,34,38,22,93,116,132,125,250,114,95,35,66,57,136,127,139,141,144,147,166,91,107,107,88,60,61,4,41,41,47,20,30,30,39,12,12,0,0,0,0,0,0,0,0,0,0,0,0,0,0,0,0,0,0,0,8,0,0,0,8]} 1. d4 {[%emt 1:31:00]} d5 {[%emt 0:02:22]} 2. Nf3 {[%emt 0:00:00]} Nf6 {[%emt 0:00:36]} 3. c4 {[%emt 0:00:00]} e6 {[%emt 0:02:14]} 4. Nc3 {[%emt 0:00:00]} Be7 {[%emt 0:01:31]} 5. Bg5 {[%emt 0:00:00]} h6 {[%emt 0:01:26]} 6. Bh4 {[%emt 0:00:00]} O-O {[%emt 0:00:19]} 7. e3 {[%emt 0:00:00]} Nbd7 {[%emt 0:01:01]} 8. Rc1 {[%emt 0:00:00]} c6 {[%emt 0:00:19]} 9. Bd3 {[%emt 0:00:00]} dxc4 {[%emt 0:00:53]} 10. Bxc4 {[%emt 0:00:00]} b5 {[%emt 0:00:11]} 11. Bd3 {[%emt 0:00:00]} Bb7 {[%emt 0:00:04]} 12. O-O {[%emt 0:00:00]} Rc8 {[%emt 0:00:06]} 13. a3 {[%emt 0:00:00] D66: Queen's Gambit Declined: Classical: Main Line (7 Rc1 c6 8 Bd3).} a5 {[%emt 0:00:52]} 14. Qe2 {[%emt 0:00:00]} b4 {[%emt 0:00:15]} 15. axb4 {[%emt 0:00:00]} axb4 {[%emt 0:00:06]} 16. Ne4 {[%emt 0:00:00]} c5 {[%emt 0:03:50]} 17. Bxf6 {[%emt 0:00:00]} Nxf6 {[%emt 0:00:36]} 18. Nxc5 {[%emt 0:00:00]} Bxc5 {[%emt 0:00:33]} 19. dxc5 {[%emt 0:00:00] [#] Threatens to win with Nd4.} Bxf3 {[%emt 0:00:09]} 20. gxf3 {[%emt 0:00:00]} Nd7 {[%emt 0:03:45]} 21. c6 {[%emt 0:00:00]} Ne5 {[%emt 0:00:31][%csl LRc6,LRd3] [#]} 22. Rfd1 $146 {[%emt 0:00:00][%cal Od3h7] Hoping for Bh7+!} ({Predecessor:} 22. Bb5 Qd5 23. Kg2 Nxc6 24. Bxc6 Rxc6 25. Rxc6 Qxc6 26. Rd1 Rc8 27. Qd3 Qc2 28. Rd2 {½-½ Shulman,Y (2632)-Kaidanov,G (2595) USA-ch Saint Louis 2009 (9)}) 22... Qg5+ {[%emt 0:00:49]} 23. Kh1 {[%emt 0:00:00] aiming for f4.} Nxc6 {[%emt 0:02:12][%cal Oc6d4]} (23... Qh5 $5 {[%cal Re5f3]} 24. Kg2 (24. Be4 $2 f5 $19) 24... Qg5+ 25. Kf1 Qh4 $11) 24. f4 $36 {[%emt 0:00:00][%mdl 2048] White fights for an advantage.} Qe7 {[%emt 0:07:38]} 25. Be4 {[%emt 0:00:00]} Na7 {[%emt 0:04:45] Black is weak on the light squares} 26. Qa6 {[%emt 0:00:00]} Rxc1 {[%emt 0:01:58]} 27. Rxc1 {[%emt 0:00:00]} Rd8 {[%emt 0:00:08]} 28. Qa5 {[%emt 0:00:00]} f5 {[%emt 0:02:37] [#]} (28... g6 $11) 29. Bf3 $1 $16 {[%emt 0:00:37]} Nc8 {[%emt 0:03:14]} 30. Rc7 {[%emt 0:03:43]} Qd6 {[%emt 0:00:35]} (30... Qh4 $16 {keeps fighting.} 31. Qe5 (31. Qxb4 Qxf2) 31... Qf6) 31. Rb7 {[%emt 0:02:55]} (31. Rc6 $18 Qd7 32. Rxe6 (32. Qxb4 Ne7 $14)) 31... Ne7 {[%emt 0:01:21]} 32. Qxb4 {[%emt 0:04:05] White is much more active.} (32. Rxb4 $2 {perishes.} Nc6 $19) (32. Qa7 $16 Kf8 33. h4) 32... Qxb4 $14 {[%emt 0:01:00]} 33. Rxb4 $16 {[%emt 0:00:01][%mdl 4096] Endgame KRB-KRN} Ng6 {[%emt 0:00:05]} ({Black should play} 33... g5 $14) 34. Kg2 {[%emt 0:01:32]} Nh4+ {[%emt 0:00:17]} 35. Kg3 {[%emt 0:00:02]} Nxf3 {[%emt 0:00:05]} 36. Kxf3 {[%emt 0:00:04] KR-KR} Kf7 {[%emt 0:00:20]} 37. Ke2 {[%emt 0:03:47]} (37. Rb7+ $18 Kf6 38. h4) 37... Ra8 {[%emt 0:00:30]} 38. Rd4 {[%emt 0:00:17]} g5 {[%emt 0:03:38]} 39. fxg5 {[%emt 0:00:58]} hxg5 {[%emt 0:00:04]} 40. Kf3 {[%emt 0:00:54]} (40. b4 $1 $14) 40... Ra2 {[%emt 0:01:13]} 41. Rb4 {[%emt 0:30:18]} Ra1 {[%emt 0:30:31]} 42. Rb8 {[%emt 0:00:00]} g4+ {[%emt 0:00:00]} 43. Kg2 {[%emt 0:00:00]} Kf6 {[%emt 0:00:00]} 44. b4 {[%emt 0:00:00][%cal Bb2b4,Bb4b5,Bb5b6,Bb6b7][%mdl 32]} Rb1 {[%emt 0:00:00] The position is equal.} 45. b5 {[%emt 0:00:00]} (45. h3 {simplifies} gxh3+ 46. Kxh3 Ke5 47. Kg2) 45... Ke5 {[%emt 0:00:00]} 46. b6 {[%emt 0:00:00]} Ke4 {[%emt 0:00:00]} 47. b7 {[%emt 0:00:00]} e5 {[%emt 0:00:00]} 48. Kg3 {[%emt 0:00:00]} Rb2 {[%emt 0:00:00]} 49. Kh4 {[%emt 0:00:00]} Rb1 {[%emt 0:00:00]} 50. Kg5 {[%emt 0:00:00]} Rb6 {[%emt 0:00:00]} 51. Rf8 {[%emt 0:00:00]} Rxb7 {[%emt 0:00:00]} 52. Rxf5 {[%emt 0:00:00]} Rb1 {[%emt 0:00:00]} 53. Kf6 {[%emt 0:00:00]} (53. Kxg4 {leads to mate.} Rg1+ 54. Kh5 Kxf5 55. f3 e4 56. fxe4+ Kxe4 57. Kh6 Kxe3 58. Kh5 Kf4 59. Kh6 Kf5 60. Kh5 Rg5+ 61. Kh6 Kf6 62. h3 Rc5 63. Kh7 Rh5+ 64. Kg8 Rxh3 65. Kf8 Rh8#) 53... Rb6+ {[%emt 0:00:00]} 54. Kg5 {[%emt 0:00:00]} Rb1 {[%emt 0:00:00]} 55. Kf6 {[%emt 0:06:09]} (55. Kxg4 {gets mated.} Rg1+ 56. Kh5 Kxf5 57. f3 e4 58. fxe4+ Kxe4 59. Kh6 Kxe3 60. Kh5 Ke4 61. Kh4 Kf5 62. Kh5 Rg5+ 63. Kh6 Kf6 64. h4 Rf5 65. Kh7 Rh5+ 66. Kg8 Rxh4 67. Kf8 Rh8#) 55... Rb6+ {[%emt 0:00:00]} 56. Kg5 {[%emt 0:00:04]} Rb1 {[%emt 0:00:00] Weighted Error Value: White=0.14 (very precise) /Black=0.15 (very precise)} 1/2-1/2